fUSD/lending_fUSD_20240628
["ID","MTS","AMOUNT","RATE_DAILY","PERIOD"]
[330542232,1719561119571,-503.68,0.00020547,2]
[330542233,1719561119580,-500.0,0.00020547,2]
[330542234,1719561119589,-504.05,0.00020547,2]
[330542235,1719561119598,-846.93,0.00020547,2]
[330542236,1719561119607,-500.0,0.00020547,2]
[330542237,1719561119615,-1149.92,0.00020547,2]
[330542238,1719561119624,-1397.93,0.00020547,2]
[330542239,1719561119633,-1748.17,0.00020547,2]
[330542240,1719561119642,-500.0,0.00020547,2]
[330542241,1719561119651,-542.84,0.00020547,2]
[330542242,1719561119660,-500.0,0.00020547,2]
[330542243,1719561119670,-693.92,0.00020547,2]
[330542244,1719561119679,-500.0,0.00020547,2]
[330542245,1719561119688,-500.0,0.00020547,2]
[330542246,1719561119699,-792.31,0.00020547,2]
[330542247,1719561119708,-500.0,0.00020547,2]
[330542248,1719561119717,-908.05,0.00020547,2]
[330542249,1719561119727,-1448.94,0.00020547,2]
[330542250,1719561119736,-500.0,0.00020547,2]
[330542251,1719561119746,-500.0,0.00020547,2]
[330542252,1719561119755,-500.0,0.00020547,2]
[330542253,1719561119764,-500.0,0.00020547,2]
[330542254,1719561119773,-1782.8,0.00020547,2]
[330542255,1719561119782,-500.0,0.00020547,2]
[330542256,1719561119791,-856.16,0.00020547,2]
[330542257,1719561119800,-500.0,0.00020547,2]
[330542258,1719561119809,-1199.91,0.00020547,2]
[330542259,1719561119818,-539.97,0.00020547,2]
[330542260,1719561119827,-500.0,0.00020547,2]
[330542261,1719561119835,-500.0,0.00020547,2]
[330542262,1719561119848,-1183.51,0.00020547,2]
[330542263,1719561119857,-1192.41,0.00020547,2]
[330542264,1719561119867,-610.27337488,0.00020547,2]
[330542265,1719561119876,-2299.92,0.00020547,2]
[330542266,1719561119887,-500.0,0.00020547,2]
[330542267,1719561119896,-654.32,0.00020547,2]
[330542268,1719561119905,-500.0,0.00020547,2]
[330542269,1719561119914,-673.16,0.00020547,2]
[330542270,1719561119923,-500.0,0.00020547,2]
[330542271,1719561119933,-1135.59,0.00020547,2]
[330542272,1719561119943,-718.46,0.00020547,2]
[330542273,1719561119953,-500.0,0.00020547,2]
[330542274,1719561119962,-500.0,0.00020547,2]
[330542275,1719561119971,-500.0,0.00020547,2]
[330542276,1719561119980,-596.64,0.00020547,2]
[330542277,1719561119989,-500.0,0.00020547,2]
[330542278,1719561119998,-500.0,0.00020547,2]
[330542279,1719561120007,-828.5,0.00020547,2]
[330542280,1719561120017,-500.0,0.00020547,2]
[330542281,1719561120027,-500.0,0.00020547,2]
[330542282,1719561120036,-500.0,0.00020547,2]
[330542283,1719561120045,-500.0,0.00020547,2]
[330542284,1719561120055,-1470.46,0.00020547,2]
[330542285,1719561120065,-1942.8,0.00020547,2]
[330542286,1719561120075,-568.18,0.00020547,2]
[330542287,1719561120085,-500.0,0.00020547,2]
[330542288,1719561120097,-500.0,0.00020547,2]
[330542289,1719561120107,-500.0,0.00020547,2]
[330542290,1719561120117,-559.8,0.00020547,2]
[330542291,1719561120127,-1013.31,0.00020547,2]
[330542292,1719561120137,-543.22896217,0.00020547,2]
[330542293,1719561120146,-500.0,0.00020547,2]
[330542294,1719561120155,-500.0,0.00020547,2]
[330542295,1719561120164,-687.15,0.00020547,2]
[330542296,1719561120173,-500.0,0.00020547,2]
[330542297,1719561120182,-557.81,0.00020547,2]
[330542298,1719561120191,-500.0,0.00020547,2]
[330542299,1719561120200,-1313.87,0.00020547,2]
[330542300,1719561120208,-555.71,0.00020547,2]
[330542301,1719561120217,-500.0,0.00020547,2]
[330542302,1719561120226,-1142.83,0.00020547,2]
[330542303,1719561120235,-606.98,0.00020547,2]
[330542304,1719561120243,-500.0,0.00020547,2]
[330542305,1719561120252,-1090.69,0.00020547,2]
[330542306,1719561120261,-500.0,0.00020547,2]
[330542307,1719561120271,-378.89531034,0.00020547,2]
[330542308,1719561120280,-500.0,0.00020547,2]
[330542309,1719561120289,-741.97,0.00020547,2]
[330542310,1719561120298,-500.0,0.00020547,2]
[330542311,1719561120307,-500.0,0.00020547,2]
[330542312,1719561120316,-500.0,0.00020547,2]
[330542313,1719561120325,-833.46,0.00020547,2]
[330542314,1719561120334,-858.42,0.00020547,2]
[330542315,1719561120343,-500.0,0.00020547,2]
[330542316,1719561120352,-784.18,0.00020547,2]
[330542317,1719561120362,-500.0,0.00020547,2]
[330542318,1719561120371,-676.3,0.00020547,2]
[330542319,1719561120380,-1104.3,0.00020547,2]
[330542320,1719561120389,-640.7,0.00020547,2]
[330542321,1719561120398,-547.64,0.00020547,2]
[330542322,1719561120407,-1509.32,0.00020547,2]
[330542323,1719561120416,-775.75,0.00020547,2]
[330542324,1719561120425,-500.0,0.00020547,2]
[330542325,1719561120434,-500.0,0.00020547,2]
[330542326,1719561120443,-428.42338229,0.00020547,2]
[330542327,1719561120452,-500.0,0.00020547,2]
[330542328,1719561120461,-500.0,0.00020547,2]
[330542329,1719561120470,-774.67,0.00020547,2]
[330542330,1719561120479,-1251.26,0.00020547,2]
[330542331,1719561120488,-180.50178793,0.00020547,2]
[330542332,1719561120497,-1975.28,0.00020547,2]
[330542333,1719561120506,-500.0,0.00020547,2]
[330542334,1719561120515,-704.42,0.00020547,2]
[330542335,1719561120524,-917.85,0.00020547,2]
[330542336,1719561120533,-500.0,0.00020547,2]
[330542337,1719561120542,-1651.77,0.00020547,2]
[330542338,1719561120551,-1425.82,0.00020547,2]
[330542339,1719561120561,-500.0,0.00020547,2]
[330542340,1719561120570,-500.0,0.00020547,2]
[330542341,1719561120580,-500.0,0.00020547,2]
[330542342,1719561120589,-545.19,0.00020547,2]
[330542343,1719561120598,-575.69,0.00020547,2]
[330542344,1719561120607,-500.0,0.00020547,2]
[330542345,1719561120616,-998.16,0.00020547,2]
[330542346,1719561120626,-500.0,0.00020547,2]
[330542347,1719561120635,-514.43613873,0.00020547,2]
[330542348,1719561120644,-174.11791442,0.00020547,2]
[330542349,1719561120654,-768.59,0.00020547,2]
[330542350,1719561120663,-586.61,0.00020547,2]
[330542351,1719561120672,-618.73,0.00020547,2]
[330542352,1719561120681,-848.48,0.00020547,2]
[330542353,1719561120690,-2391.81,0.00020547,2]
[330542354,1719561120699,-500.0,0.00020547,2]
[330542355,1719561120708,-764.56,0.00020547,2]
[330542356,1719561120717,-500.0,0.00020547,2]
[330542357,1719561120726,-1272.64,0.00020547,2]
[330542358,1719561120736,-688.17,0.00020547,2]
[330542359,1719561120744,-628.0,0.00020547,2]
[330542360,1719561120755,-652.19,0.00020547,2]
[330542361,1719561120764,-500.0,0.00020547,2]
[330542362,1719561120905,-8009.39,0.00020547,2]
[330542363,1719561120919,-1144.92,0.00020547,2]
[330542364,1719561120929,-500.0,0.00020547,2]
[330542365,1719561120940,-500.0,0.00020547,2]
[330542366,1719561120950,-500.0,0.00020547,2]
[330542367,1719561120960,-3067.21,0.00020547,2]
[330542368,1719561120969,-1469.95,0.00020547,2]
[330542369,1719561120979,-937.69,0.00020547,2]
[330542370,1719561120988,-608.87,0.00020547,2]
[330542371,1719561120998,-530.38,0.00020547,2]
[330542372,1719561121008,-2389.09,0.00020547,2]
[330542373,1719561121020,-698.09,0.00020547,2]
[330542374,1719561121029,-931.89,0.00020547,2]
[330542375,1719561121039,-1828.93,0.00020547,2]
[330542376,1719561121052,-500.0,0.00020547,2]
[330542377,1719561121062,-500.0,0.00020547,2]
[330542378,1719561121072,-2237.48,0.00020547,2]
[330542379,1719561121082,-809.41,0.00020547,2]
[330542380,1719561121093,-548.11,0.00020547,2]
[330542381,1719561121103,-1079.6,0.00020547,2]
[330542382,1719561121113,-844.19,0.00020547,2]
[330542383,1719561121123,-1576.09,0.00020547,2]
[330542384,1719561121132,-500.0,0.00020547,2]
[330542385,1719561121142,-1489.92,0.00020547,2]
[330542386,1719561121152,-500.0,0.00020547,2]
[330542387,1719561121161,-1957.19,0.00020547,2]
[330542388,1719561121171,-500.0,0.00020547,2]
[330542389,1719561121180,-912.0,0.00020547,2]
[330542390,1719561121190,-500.0,0.00020547,2]
[330542391,1719561121199,-500.0,0.00020547,2]
[330542392,1719561121209,-688.77,0.00020547,2]
[330542393,1719561121218,-2356.49,0.00020547,2]
[330542394,1719561121227,-500.0,0.00020547,2]
[330542395,1719561121237,-2130.37,0.00020547,2]
[330542396,1719561121246,-838.95,0.00020547,2]
[330542397,1719561121256,-1793.14,0.00020547,2]
[330542398,1719561121266,-596.16,0.00020547,2]
[330542399,1719561121276,-543.6,0.00020547,2]
[330542400,1719561121285,-2016.92,0.00020547,2]
[330542401,1719561121294,-1344.1,0.00020547,2]
[330542402,1719561121303,-200.0,0.00020547,2]
[330542403,1719561121312,-500.0,0.00020547,2]
[330542404,1719561121322,-2804.61,0.00020547,2]
[330542405,1719561121331,-2335.31,0.00020547,2]
[330542406,1719561121341,-2999.18,0.00020547,2]
[330542407,1719561121351,-966.61,0.00020547,2]
[330542408,1719561121361,-1555.99,0.00020547,2]
[330542409,1719561121370,-467.4104526,0.00020547,2]
[330542410,1719561121380,-1299.02,0.00020547,2]
[330542411,1719561121390,-1622.54,0.00020547,2]
[330542412,1719561121400,-1196.1,0.00020547,2]
[330542413,1719561121409,-1982.91,0.00020547,2]
[330542414,1719561121418,-580.04,0.00020547,2]
[330542415,1719561121428,-309.36832361,0.00020547,2]
[330542416,1719561121439,-585.72,0.00020547,2]
[330542417,1719561121449,-1835.49,0.00020547,2]
[330542418,1719561121460,-829.04,0.00020547,2]
[330542419,1719561121469,-500.0,0.00020547,2]
[330542420,1719561121479,-500.0,0.00020547,2]
[330542421,1719561121489,-500.0,0.00020547,2]
[330542422,1719561121499,-500.0,0.00020547,2]
[330542423,1719561121509,-500.0,0.00020547,2]
[330542424,1719561121521,-500.0,0.00020547,2]
[330542425,1719561121530,-1053.06,0.00020547,2]
[330542426,1719561121539,-2025.35,0.00020547,2]
[330542427,1719561121548,-500.0,0.00020547,2]
[330542428,1719561121557,-926.48,0.00020547,2]
[330542429,1719561121567,-3299.83,0.00020547,2]
[330542430,1719561121577,-2045.94,0.00020547,2]
[330542431,1719561121586,-500.0,0.00020547,2]
[330542432,1719561121595,-520.99,0.00020547,2]
[330542433,1719561121605,-500.0,0.00020547,2]
[330542434,1719561121615,-500.0,0.00020547,2]
[330542435,1719561121624,-1125.69,0.00020547,2]
[330542436,1719561121634,-652.91,0.00020547,2]
[330542437,1719561121643,-515.76,0.00020547,2]
[330542438,1719561121653,-518.58,0.00020547,2]
[330542439,1719561121662,-1218.63,0.00020547,2]
[330542440,1719561121672,-764.42,0.00020547,2]
[330542441,1719561121682,-500.0,0.00020547,2]
[330542442,1719561121691,-807.73,0.00020547,2]
[330542443,1719561121701,-500.0,0.00020547,2]
[330542444,1719561121710,-500.0,0.00020547,2]
[330542445,1719561121720,-500.0,0.00020547,2]
[330542446,1719561121730,-670.83,0.00020547,2]
[330542447,1719561121740,-500.0,0.00020547,2]
[330542448,1719561121749,-500.0,0.00020547,2]
[330542449,1719561121759,-717.38,0.00020547,2]
[330542450,1719561121770,-1228.76,0.00020547,2]
[330542451,1719561121779,-1190.64,0.00020547,2]
[330542452,1719561121788,-500.0,0.00020547,2]
[330542453,1719561121797,-1204.53,0.00020547,2]
[330542454,1719561121807,-1337.55,0.00020547,2]
[330542455,1719561121816,-500.0,0.00020547,2]
[330542456,1719561121825,-1119.97,0.00020547,2]
[330542457,1719561121835,-4412.5,0.00020547,2]
[330542458,1719561121846,-500.0,0.00020547,2]
[330542459,1719561121857,-4811.88,0.00020547,2]
[330542460,1719561121866,-930.05,0.00020547,2]
[330542461,1719561121875,-1038.25,0.00020547,2]
[330542462,1719561121884,-4473.58,0.00020547,2]
[330542463,1719561121895,-500.0,0.00020547,2]
[330542464,1719561121904,-689.91,0.00020547,2]
[330542465,1719561121913,-500.0,0.00020547,2]
[330542466,1719561121922,-500.0,0.00020547,2]
[330542467,1719561121933,-500.0,0.00020547,2]
[330542468,1719561121943,-500.0,0.00020547,2]
[330542469,1719561121952,-500.0,0.00020547,2]
[330542470,1719561121962,-816.16,0.00020547,2]
[330542471,1719561121971,-2445.0,0.00020547,2]
[330542472,1719561121981,-500.0,0.00020547,2]
[330542473,1719561121991,-1090.73,0.00020547,2]
[330542474,1719561122000,-1132.58,0.00020547,2]
[330542475,1719561122010,-615.52,0.00020547,2]
[330542476,1719561122021,-1125.15,0.00020547,2]
[330542477,1719561122031,-500.0,0.00020547,2]
[330542478,1719561122040,-314.15893613,0.00020547,2]
[330542479,1719561122050,-2267.1,0.00020547,2]
[330542480,1719561122060,-500.0,0.00020547,2]
[330542481,1719561122070,-151.0,0.00020547,2]
[330542482,1719561122080,-568.55,0.00020547,2]
[330542483,1719561122090,-500.0,0.00020547,2]
[330542484,1719561122099,-2510.06,0.00020547,2]
[330542485,1719561122108,-724.86,0.00020547,2]
[330542486,1719561122118,-500.0,0.00020547,2]
[330542487,1719561122128,-759.55,0.00020547,2]
[330542488,1719561122139,-783.56,0.00020547,2]
[330542489,1719561122149,-500.0,0.00020547,2]
[330542490,1719561122158,-1851.28,0.00020547,2]
[330542491,1719561122167,-500.0,0.00020547,2]
[330542492,1719561122177,-2477.12,0.00020547,2]
[330542493,1719561122187,-2254.48,0.00020547,2]
[330542494,1719561122197,-500.0,0.00020547,2]
[330542495,1719561122208,-2145.27,0.00020547,2]
[330542496,1719561122217,-500.0,0.00020547,2]
[330542497,1719561122227,-500.0,0.00020547,2]
[330542498,1719561122237,-3000.49,0.00020547,2]
[330542499,1719561122246,-1339.23,0.00020547,2]
[330542500,1719561122255,-1120.11,0.00020547,2]
[330542501,1719561122265,-1458.45,0.00020547,2]
[330542502,1719561122276,-1203.63,0.00020547,2]
[330542503,1719561122285,-17654.57,0.00020547,2]
[330542504,1719561122294,-1367.37,0.00020547,2]
[330542505,1719561122303,-780.04,0.00020547,2]
[330542506,1719561122312,-500.0,0.00020547,2]
[330542507,1719561122322,-500.0,0.00020547,2]
[330542508,1719561122331,-500.0,0.00020547,2]
[330542509,1719561122340,-2156.78,0.00020547,2]
[330542510,1719561122350,-1038.74,0.00020547,2]
[330542511,1719561122359,-1281.81,0.00020547,2]
[330542512,1719561122369,-500.0,0.00020547,2]
[330542513,1719561122378,-500.0,0.00020547,2]
[330542514,1719561122387,-500.0,0.00020547,2]
[330542515,1719561122396,-707.98,0.00020547,2]
[330542516,1719561122406,-2512.87,0.00020547,2]
[330542517,1719561122415,-500.0,0.00020547,2]
[330542518,1719561122424,-500.0,0.00020547,2]
[330542519,1719561122435,-692.45,0.00020547,2]
[330542520,1719561122444,-500.0,0.00020547,2]
[330542521,1719561122453,-1233.32,0.00020547,2]
[330542522,1719561122463,-2622.42,0.00020547,2]
[330542523,1719561122473,-1810.79,0.00020547,2]
[330542524,1719561122482,-1361.17,0.00020547,2]
[330542525,1719561122492,-1142.92,0.00020547,2]
[330542526,1719561122502,-1277.67,0.00020547,2]
[330542527,1719561122511,-500.0,0.00020547,2]
[330542528,1719561122522,-1346.62,0.00020547,2]
[330542529,1719561122531,-1322.18,0.00020547,2]
[330542530,1719561122540,-552.58,0.00020547,2]
[330542531,1719561122550,-500.0,0.00020547,2]
[330542532,1719561122559,-863.49,0.00020547,2]
[330542533,1719561122569,-2301.13,0.00020547,2]
[330542534,1719561122579,-4612.82,0.00020547,2]
[330542535,1719561122589,-500.0,0.00020547,2]
[330542536,1719561122598,-500.0,0.00020547,2]
[330542537,1719561122608,-1538.87,0.00020547,2]
[330542538,1719561122617,-1624.52,0.00020547,2]
[330542539,1719561122626,-2577.63,0.00020547,2]
[330542540,1719561122635,-500.0,0.00020547,2]
[330542541,1719561122644,-6138.1,0.00020547,2]
[330542542,1719561122654,-500.0,0.00020547,2]
[330542543,1719561122663,-500.0,0.00020547,2]
[330542544,1719561122673,-1509.29,0.00020547,2]
[330542545,1719561122683,-181.39732695,0.00020547,2]
[330542546,1719561122693,-500.0,0.00020547,2]
[330542547,1719561122703,-1002.25,0.00020547,2]
[330542548,1719561122714,-1414.89,0.00020547,2]
[330542549,1719561122724,-1177.0,0.00020547,2]
[330542550,1719561122734,-1548.23,0.00020547,2]
[330542551,1719561122743,-1820.37,0.00020547,2]
[330542552,1719561122752,-1324.8,0.00020547,2]
[330542553,1719561122761,-1380.03,0.00020547,2]
[330542554,1719561122771,-500.0,0.00020547,2]
[330542555,1719561122780,-2472.64,0.00020547,2]
[330542556,1719561122790,-705.74,0.00020547,2]
[330542557,1719561122799,-5070.88,0.00020547,2]
[330542558,1719561122808,-3381.95,0.00020547,2]
[330542559,1719561122817,-864.54,0.00020547,2]
[330542560,1719561122827,-2034.01,0.00020547,2]
[330542561,1719561122836,-2105.9,0.00020547,2]
[330542562,1719561122845,-500.0,0.00020547,2]
[330542563,1719561122858,-500.0,0.00020547,2]
[330542564,1719561122867,-1227.23,0.00020547,2]
[330542565,1719561122876,-1396.45,0.00020547,2]
[330542566,1719561122886,-546.23137167,0.00020547,2]
[330542567,1719561122896,-1675.94,0.00020547,2]
[330542568,1719561122906,-1285.82,0.00020547,2]
[330542569,1719561122915,-500.0,0.00020547,2]
[330542570,1719561122924,-536.38,0.00020547,2]
[330542571,1719561122937,-500.0,0.00020547,2]
[330542572,1719561122948,-1080.4,0.00020547,2]
[330542573,1719561122957,-1135.8,0.00020547,2]
[330542574,1719561122967,-1091.76,0.00020547,2]
[330542575,1719561122976,-3936.72,0.00020547,2]
[330542576,1719561122986,-500.0,0.00020547,2]
[330542577,1719561122995,-500.0,0.00020547,2]
[330542578,1719561123005,-500.0,0.00020547,2]
[330542579,1719561123015,-614.98,0.00020547,2]
[330542580,1719561123026,-500.0,0.00020547,2]
[330542581,1719561123341,-4738.44,0.00020547,2]
[330542582,1719561123395,-500.0,0.00020547,2]
[330542583,1719561123406,-1651.05,0.00020547,2]
[330542584,1719561123415,-1956.77,0.00020547,2]
[330542585,1719561123425,-933.08,0.00020547,2]
[330542586,1719561123435,-500.0,0.00020547,2]
[330542587,1719561123445,-500.0,0.00020547,2]
[330542588,1719561123454,-206.90764751,0.00020547,2]
[330542589,1719561123464,-2667.99,0.00020547,2]
[330542590,1719561123473,-6250.57,0.00020547,2]
[330542591,1719561123483,-1063.1,0.00020547,2]
[330542592,1719561123492,-823.18,0.00020547,2]
[330542593,1719561123502,-4756.33,0.00020547,2]
[330542594,1719561123512,-1293.08,0.00020547,2]
[330542595,1719561123523,-500.0,0.00020547,2]
[330542596,1719561123532,-5103.03,0.00020547,2]
[330542597,1719561123542,-721.31,0.00020547,2]
[330542598,1719561123552,-500.0,0.00020547,2]
[330542599,1719561123562,-289.35001507,0.00020547,2]
[330542600,1719561123571,-1439.83,0.00020547,2]
[330542601,1719561123580,-770.64,0.00020547,2]
[330542602,1719561123590,-2458.51,0.00020547,2]
[330542603,1719561123599,-500.0,0.00020547,2]
[330542604,1719561123610,-500.0,0.00020547,2]
[330542605,1719561123619,-1211.11,0.00020547,2]
[330542606,1719561123630,-552.09,0.00020547,2]
[330542607,1719561123640,-3750.61,0.00020547,2]
[330542608,1719561123649,-500.0,0.00020547,2]
[330542609,1719561123659,-500.0,0.00020547,2]
[330542610,1719561123669,-2098.22,0.00020547,2]
[330542611,1719561123678,-500.0,0.00020547,2]
[330542612,1719561123687,-500.0,0.00020547,2]
[330542613,1719561123697,-754.56,0.00020547,2]
[330542614,1719561123707,-4491.42,0.00020547,2]
[330542615,1719561123717,-2020.73,0.00020547,2]
[330542616,1719561123726,-500.0,0.00020547,2]
[330542617,1719561123735,-289.54924437,0.00020547,2]
[330542618,1719561123745,-2438.38,0.00020547,2]
[330542619,1719561123754,-1992.71,0.00020547,2]
[330542620,1719561123763,-781.62,0.00020547,2]
[330542621,1719561123774,-500.0,0.00020547,2]
[330542622,1719561123785,-1432.47,0.00020547,2]
[330542623,1719561123795,-500.0,0.00020547,2]
[330542624,1719561123805,-500.0,0.00020547,2]
[330542625,1719561123815,-1548.3,0.00020547,2]
[330542626,1719561123825,-885.59,0.00020547,2]
[330542627,1719561123834,-5534.77,0.00020547,2]
[330542628,1719561123844,-500.0,0.00020547,2]
[330542629,1719561123859,-500.0,0.00020547,2]
[330542630,1719561123869,-4164.92,0.00020547,2]
[330542631,1719561123878,-1994.67,0.00020547,2]
[330542632,1719561123888,-1403.1,0.00020547,2]
[330542633,1719561123898,-814.93,0.00020547,2]
[330542634,1719561123908,-2686.24,0.00020547,2]
[330542635,1719561123917,-526.81,0.00020547,2]
[330542636,1719561123927,-3931.36,0.00020547,2]
[330542637,1719561123938,-500.0,0.00020547,2]
[330542638,1719561123947,-1627.14,0.00020547,2]
[330542639,1719561123957,-500.0,0.00020547,2]
[330542640,1719561123966,-500.0,0.00020547,2]
[330542641,1719561123976,-500.0,0.00020547,2]
[330542642,1719561123985,-1739.9,0.00020547,2]
[330542643,1719561123995,-1201.25,0.00020547,2]
[330542644,1719561124005,-823.37,0.00020547,2]
[330542645,1719561124014,-500.0,0.00020547,2]
[330542646,1719561124025,-611.1140727,0.00020547,2]
[330542647,1719561124034,-1677.95,0.00020547,2]
[330542648,1719561124043,-500.0,0.00020547,2]
[330542649,1719561124057,-500.0,0.00020547,2]
[330542650,1719561124067,-500.0,0.00020547,2]
[330542651,1719561124077,-500.0,0.00020547,2]
[330542652,1719561124087,-2423.48,0.00020547,2]
[330542653,1719561124096,-4579.29,0.00020547,2]
[330542654,1719561124106,-564.34,0.00020547,2]
[330542655,1719561124115,-500.0,0.00020547,2]
[330542656,1719561124125,-500.0,0.00020547,2]
[330542657,1719561124135,-500.0,0.00020547,2]
[330542658,1719561124144,-4356.08,0.00020547,2]
[330542659,1719561124154,-3220.4,0.00020547,2]
[330542660,1719561124163,-500.0,0.00020547,2]
[330542661,1719561124173,-10448.28,0.00020547,2]
[330542662,1719561124182,-502.4133041,0.00020547,2]
[330542663,1719561124192,-2461.19,0.00020547,2]
[330542664,1719561124202,-575.39,0.00020547,2]
[330542665,1719561124211,-4745.96,0.00020547,2]
[330542666,1719561124221,-848.23,0.00020547,2]
[330542667,1719561124230,-571.54,0.00020547,2]
[330542668,1719561124239,-500.0,0.00020547,2]
[330542669,1719561124249,-1688.67,0.00020547,2]
[330542670,1719561124259,-500.0,0.00020547,2]
[330542671,1719561124272,-662.7,0.00020547,2]
[330542672,1719561124281,-1372.06,0.00020547,2]
[330542673,1719561124291,-504.88,0.00020547,2]
[330542674,1719561124300,-500.0,0.00020547,2]
[330542675,1719561124310,-1056.34,0.00020547,2]
[330542676,1719561124319,-606.3,0.00020547,2]
[330542677,1719561124329,-1074.08,0.00020547,2]
[330542678,1719561124339,-500.0,0.00020547,2]
[330542679,1719561124348,-2441.39,0.00020547,2]
[330542680,1719561124358,-2465.9,0.00020547,2]
[330542681,1719561124368,-500.0,0.00020547,2]
[330542682,1719561124378,-1390.74,0.00020547,2]
[330542683,1719561124387,-1781.97,0.00020547,2]
[330542684,1719561124396,-500.0,0.00020547,2]
[330542685,1719561124406,-935.7,0.00020547,2]
[330542686,1719561124415,-500.0,0.00020547,2]
[330542687,1719561124425,-3285.77,0.00020547,2]
[330542688,1719561124434,-525.03,0.00020547,2]
[330542689,1719561124445,-500.0,0.00020547,2]
[330542690,1719561124455,-668.57,0.00020547,2]
[330542691,1719561124464,-500.0,0.00020547,2]
[330542692,1719561124474,-1463.5,0.00020547,2]
[330542693,1719561124484,-500.0,0.00020547,2]
[330542694,1719561124494,-1552.82,0.00020547,2]
[330542695,1719561124504,-253.30863632,0.00020547,2]
[330542696,1719561124513,-1287.58,0.00020547,2]
[330542697,1719561124525,-1253.08,0.00020547,2]
[330542698,1719561124534,-500.0,0.00020547,2]
[330542699,1719561124544,-500.0,0.00020547,2]
[330542700,1719561124554,-1221.61,0.00020547,2]
[330542701,1719561124563,-500.0,0.00020547,2]
[330542702,1719561124573,-500.0,0.00020547,2]
[330542703,1719561124582,-2098.47,0.00020547,2]
[330542704,1719561124593,-861.59,0.00020547,2]
[330542705,1719561124602,-1171.21,0.00020547,2]
[330542706,1719561124611,-500.0,0.00020547,2]
[330542707,1719561124621,-3809.85,0.00020547,2]
[330542708,1719561124631,-500.0,0.00020547,2]
[330542709,1719561124640,-1526.48,0.00020547,2]
[330542710,1719561124650,-500.0,0.00020547,2]
[330542711,1719561124659,-1044.61,0.00020547,2]
[330542712,1719561124670,-2191.37,0.00020547,2]
[330542713,1719561124680,-500.0,0.00020547,2]
[330542714,1719561124690,-500.0,0.00020547,2]
[330542715,1719561124700,-2330.29,0.00020547,2]
[330542716,1719561124710,-1251.54,0.00020547,2]
[330542717,1719561124719,-3118.59,0.00020547,2]
[330542718,1719561124729,-500.0,0.00020547,2]
[330542719,1719561124738,-1197.85,0.00020547,2]
[330542720,1719561124748,-532.97,0.00020547,2]
[330542721,1719561124757,-2052.11,0.00020547,2]
[330542722,1719561124767,-500.0,0.00020547,2]
[330542723,1719561124776,-500.0,0.00020547,2]
[330542724,1719561124787,-5026.87,0.00020547,2]
[330542725,1719561124797,-873.76,0.00020547,2]
[330542726,1719561124806,-1566.0,0.00020547,2]
[330542727,1719561124815,-3596.87,0.00020547,2]
[330542728,1719561124825,-1698.0,0.00020547,2]
[330542729,1719561124834,-1543.01,0.00020547,2]
[330542730,1719561124844,-2335.36,0.00020547,2]
[330542731,1719561124854,-3389.93,0.00020547,2]